bitfinex/quotes_ETHUSD_20250625
["timestamp","ask_amount","ask_price","bid_price","bid_amount"]
[1750886389739,0.2048,2439.8,2439.4,4.30409315]
[1750886390063,0.2048,2439.8,2439.4,0.2048]
[1750886390573,4.30357409,2439.8,2439.4,0.2048]
[1750886391069,4.09888293,2439.7,2439.4,0.2048]
[1750886391267,4.30356983,2439.8,2439.4,0.2048]
[1750886391469,4.30356983,2439.8,2439.4,0.8097684]
[1750886393070,13.93162958,2439.9,2439.5,0.7967]
[1750886393271,13.93162958,2439.9,2439.6,0.2048]
[1750886394071,13.93153672,2439.9,2439.6,0.2048]
[1750886397074,9.833,2439.9,2439.6,0.2048]
[1750886397275,9.833,2439.9,2439.6,0.77537861]
[1750886397667,9.833,2439.9,2439.6,4.87440381]
[1750886398076,9.833,2439.9,2439.6,0.77537861]
[1750886398242,13.93155526,2439.9,2439.6,0.77537861]
[1750886398973,4.09855526,2439.9,2439.6,0.77537861]
[1750886400179,4.09872675,2439.8,2439.6,0.77537861]
[1750886400581,4.09872675,2439.8,2439.6,0.2048]
[1750886401357,4.09861418,2439.9,2439.6,0.2048]
[1750886402290,4.09886461,2439.7,2439.2,0.8323]
[1750886402489,0.2048,2439.6,2439.2,5.13671147]
[1750886402896,0.2048,2439.6,2439.3,4.09952322]
[1750886403103,1.778,2440.0,2439.6,0.7984]
[1750886403269,0.2048,2439.9,2439.6,0.7984]
[1750886404492,4.30333352,2439.9,2439.6,0.7984]
[1750886404691,0.2048,2439.9,2439.6,0.7984]
[1750886404893,4.30334305,2439.9,2439.6,0.7984]
[1750886405109,1.773,2440.7,2440.1,0.786]
[1750886405309,1.773,2440.7,2440.2,4.09793413]
[1750886405622,11.773,2440.7,2440.2,4.09793413]
[1750886405987,15.87025352,2440.7,2440.2,4.09799481]
[1750886406224,15.61524477,2440.7,2439.8,0.786]
[1750886406390,15.61524477,2440.7,2440.4,4.09766331]
[1750886406595,1.773,2440.7,2440.4,4.09753765]
[1750886407393,1.773,2440.7,2440.3,4.09776872]
[1750886407932,12.4283,2440.8,2440.4,4.09767121]
[1750886408113,16.52533593,2440.8,2440.3,4.09780184]
[1750886408289,4.09720204,2440.7,2440.2,4.88395786]
[1750886408710,16.52540734,2440.8,2440.2,4.88395786]
[1750886408884,16.52540734,2440.8,2440.2,5.78216756]
[1750886409621,16.52540734,2440.8,2440.3,4.09784317]
[1750886410120,4.09718775,2440.7,2440.2,5.7821508]
[1750886410300,16.52538298,2440.8,2440.3,4.09783494]
[1750886410483,16.52538298,2440.8,2440.3,5.08584049]
[1750886412117,4.09719289,2440.7,2440.3,5.08584049]
[1750886412415,16.52536176,2440.8,2440.4,4.09768526]
[1750886412827,16.52536176,2440.8,2440.3,5.08579504]
[1750886414791,16.52536176,2440.8,2440.4,4.09768245]
[1750886414997,12.6331,2440.8,2440.4,5.29945364]
[1750886415531,16.73019841,2440.8,2440.4,1.20177119]
[1750886415728,12.6331,2440.8,2440.4,1.20177119]
[1750886415935,12.6331,2440.8,2440.7,4.09718523]
[1750886415936,1.773,2440.8,2440.7,4.09718523]
[1750886418522,11.66002375,2441.2,2440.8,4.09693706]
[1750886418523,12.5846,2441.2,2440.8,4.09693706]
[1750886419232,0.7951,2441.7,2440.9,1.3447]
[1750886419531,0.7951,2441.7,2441.1,4.30123766]
[1750886419733,0.7951,2441.7,2441.2,4.52632974]
[1750886419937,0.7951,2441.7,2441.3,0.2048]
[1750886420148,0.7951,2441.4,2440.8,4.09701298]
[1750886420307,2.5671,2441.4,2441.1,4.09643503]
[1750886420659,1.772,2441.4,2441.1,4.09643503]
[1750886420829,0.204,2441.5,2441.2,4.09623121]
[1750886421442,0.7842,2442.0,2441.2,0.91674961]
[1750886421640,0.204,2441.9,2441.5,4.09575754]
[1750886422648,4.29925054,2441.9,2441.4,5.06983328]
[1750886423014,0.204,2441.9,2441.4,5.06983328]
[1750886423213,0.204,2441.9,2441.4,0.9739]
[1750886423413,0.204,2441.9,2441.4,1.4809031]
[1750886424010,4.29921337,2441.9,2441.4,5.57682255]
[1750886425144,10.7842,2441.8,2441.4,0.7110031]
[1750886425321,0.7842,2441.4,2440.4,0.7699]
[1750886425526,0.7842,2441.4,2440.7,4.09708927]
[1750886425527,4.0963397,2441.3,2440.7,4.09708927]
[1750886425740,4.0963397,2441.3,2440.6,4.0972308]
[1750886425911,6.747,2441.3,2440.4,4.86750072]
[1750886426115,4.09685357,2440.9,2440.5,10.48675007]
[1750886426331,4.09675175,2441.0,2440.5,4.58419188]
[1750886426537,4.09687751,2440.9,2440.5,0.48675007]
[1750886426930,4.09651386,2441.1,2440.6,4.0973255]
[1750886427137,4.09669223,2441.0,2440.5,4.58419964]
[1750886427336,4.09656411,2441.1,2440.6,4.09732143]
[1750886428044,4.09669487,2441.0,2440.5,4.58419458]
[1750886428425,4.09686016,2440.9,2440.5,0.48675007]
[1750886429338,4.09651386,2441.1,2440.2,4.87331441]
[1750886429551,4.09696898,2440.9,2440.4,4.09768524]
[1750886429720,4.09704915,2440.8,2440.3,4.09776462]
[1750886430846,4.90184654,2441.0,2440.2,14.87329588]
[1750886430847,4.09693052,2440.9,2440.4,4.09767519]
[1750886431221,4.097062,2440.8,2440.3,4.0977632]
[1750886431425,4.09688968,2440.9,2440.4,4.0976127]
[1750886431923,4.09709896,2440.8,2440.3,6.66951394]
[1750886432326,4.09718593,2440.7,2440.2,14.8732514]
[1750886432532,4.09739184,2440.6,2440.2,10.7753]
[1750886432834,4.09753113,2440.5,2440.2,0.7753]
[1750886433037,4.09776463,2440.4,2440.0,10.7803]
[1750886433246,4.09777517,2440.4,2440.1,1.48787828]
[1750886434837,4.0977927,2440.4,2440.1,1.48787828]
[1750886435028,4.0979663,2440.3,2439.9,10.0]
[1750886435342,0.2048,2440.3,2440.0,4.09835708]
[1750886435654,4.09803064,2440.2,2439.8,5.05461522]
[1750886435818,4.30274816,2440.3,2439.8,5.05461522]
[1750886436022,4.30274816,2440.3,2439.8,6.96996285]
[1750886436255,0.2048,2440.3,2439.9,4.09852378]
[1750886436833,4.3026916,2440.3,2439.8,6.96996724]
[1750886437655,4.09803278,2440.2,2439.8,6.96996724]
[1750886437834,0.2048,2440.3,2439.9,4.09850699]
[1750886438151,0.2048,2440.3,2440.0,4.09826828]
[1750886438623,0.2048,2440.3,2439.9,5.20528167]
[1750886439018,0.2048,2440.3,2440.0,4.09835679]
[1750886439234,0.2048,2440.3,2440.0,4.09833425]
[1750886439549,0.793,2440.8,2440.2,0.8066]
[1750886439853,14.89009196,2440.8,2440.3,4.09783393]
[1750886440034,4.09721018,2440.7,2440.2,5.65980333]
[1750886441846,14.8900832,2440.8,2440.3,4.09777404]
[1750886442253,4.0971998,2440.7,2440.2,5.65981621]
[1750886442549,4.0971998,2440.7,2440.3,5.0736426]
[1750886442746,4.0971998,2440.7,2440.3,0.97579717]
[1750886444759,4.09722291,2440.7,2440.3,0.97579717]
[1750886446963,4.09738782,2440.6,2440.3,0.97579717]
[1750886447863,16.65914318,2440.8,2440.3,0.97579717]
[1750886448064,4.09731842,2440.7,2440.2,5.65987838]
[1750886449164,4.09747336,2440.6,2440.2,1.56186]
[1750886449465,4.09747336,2440.6,2440.2,1.76666]
[1750886449848,4.09746442,2440.6,2440.2,1.56186]
[1750886450048,0.2048,2440.5,2440.2,0.8066]
[1750886450670,0.2048,2440.5,2440.1,0.2048]
[1750886450857,4.30252249,2440.4,2439.9,5.13228452]
[1750886451477,4.88516938,2440.3,2439.9,1.0339]
[1750886451659,4.88516938,2440.3,2439.9,5.13241698]
[1750886451860,0.7872,2440.3,2440.0,0.5132417]
[1750886452462,4.30258434,2440.4,2440.0,0.5132417]
[1750886452781,4.0978731,2440.3,2440.0,0.5132417]
[1750886453082,4.30258643,2440.4,2440.0,0.5132417]
[1750886454679,4.09786029,2440.3,2440.0,0.5132417]
[1750886456450,4.09786029,2440.3,2439.0,1.08944508]
[1750886456451,0.8275,2440.1,2439.0,1.08944508]
[1750886456786,0.8275,2439.4,2439.0,1.08944508]
[1750886457082,4.0998729,2439.1,2439.0,0.20476339]
[1750886457492,4.10021398,2438.9,2438.7,0.7823]
[1750886457786,4.10039387,2438.8,2438.5,0.7823]
[1750886457977,4.10040167,2438.8,2438.5,0.7823]
[1750886458488,4.10040167,2438.8,2438.1,10.84554254]
[1750886458489,4.10111169,2438.4,2438.1,0.7896]
[1750886458796,4.10131116,2438.3,2438.1,0.7896]
[1750886458978,4.1011319,2438.4,2438.1,0.7896]
[1750886459363,4.1014828,2438.2,2437.7,0.7896]
[1750886459583,1.769,2438.2,2437.7,4.89180373]
[1750886459786,1.769,2438.2,2437.7,0.7896]
[1750886460086,1.769,2438.2,2437.4,0.7896]
[1750886460087,0.8233,2438.1,2437.4,0.7896]
[1750886460254,2.35602207,2438.2,2437.8,4.10205821]
[1750886460255,1.769,2438.2,2437.8,4.10205821]
[1750886460657,1.769,2438.2,2437.7,4.10214724]
[1750886461282,1.769,2438.2,2437.8,4.10202598]
[1750886461500,1.769,2438.2,2437.8,4.93142598]
[1750886461862,0.7662,2438.4,2437.8,1.73276233]
[1750886462059,1.769,2438.3,2438.1,4.10145227]
[1750886462368,1.769,2438.3,2438.1,4.1014664]
[1750886462695,1.769,2438.3,2438.0,4.10165695]
[1750886463273,1.769,2438.3,2437.9,4.10181776]
[1750886463589,1.769,2438.3,2438.0,4.10171601]
[1750886463982,1.769,2438.3,2437.9,4.1018186]
[1750886466389,4.10108858,2438.4,2437.9,4.1018186]
[1750886466592,1.9728,2438.3,2437.9,4.3066186]
[1750886468788,6.68140366,2438.3,2437.9,0.2048]
[1750886469163,2.58017972,2438.3,2437.9,4.30668594]
[1750886469364,6.0740393,2438.3,2437.9,0.2048]
[1750886469793,5.86924854,2438.3,2437.8,4.9313751]
[1750886469958,0.9989,2438.2,2437.8,4.1019751]
[1750886470899,0.9989,2438.2,2437.9,4.10185759]
[1750886472689,0.2048,2438.2,2437.8,4.1020559]
[1750886472907,0.2048,2438.2,2437.9,4.10189097]
[1750886473060,0.2048,2438.2,2437.3,0.7814]
[1750886473061,0.7552,2438.1,2437.3,0.7814]
[1750886473266,0.7552,2438.1,2437.6,4.1023207]
[1750886473567,4.1018996,2437.9,2437.5,4.10248155]
[1750886473975,0.7552,2438.1,2437.3,0.7814]
[1750886474171,0.7552,2438.1,2437.6,4.10228986]
[1750886474385,0.7552,2438.1,2437.8,4.10204272]
[1750886474787,0.7552,2438.1,2437.7,4.1021364]
[1750886475775,4.85676824,2438.1,2437.7,4.1021364]
[1750886475975,4.85676824,2438.1,2437.6,4.10231812]
[1750886475976,4.85683498,2438.1,2437.6,4.10231812]
[1750886476911,4.85683498,2438.1,2437.7,4.10220454]
[1750886477706,0.7552,2438.1,2437.7,4.10213186]
[1750886479614,0.7729,2438.8,2438.2,0.7959]
[1750886479789,1.768,2439.0,2438.7,4.10043156]
[1750886480385,1.768,2439.0,2438.2,0.7959]
[1750886480587,1.768,2439.0,2438.5,4.10072051]
[1750886480883,1.768,2439.0,2438.6,4.10070948]
[1750886481084,5.8680538,2439.0,2438.5,4.10080898]
[1750886481315,1.768,2439.0,2438.6,4.10068985]
[1750886481520,5.86806599,2439.0,2438.5,4.10080788]
[1750886482418,5.86806599,2439.0,2438.3,5.14089965]
[1750886482419,1.768,2439.0,2438.6,4.10068758]
[1750886482630,5.86804537,2439.0,2438.5,4.10078887]
[1750886483000,0.2048,2438.9,2438.5,4.30558887]
[1750886484113,1.9728,2438.9,2438.5,4.30558887]
[1750886485223,1.9728,2438.9,2438.5,0.2048]
[1750886485430,1.9728,2438.9,2438.5,4.30566222]
[1750886487413,1.9728,2438.9,2438.5,0.2048]
[1750886487626,0.2048,2438.8,2438.5,4.10080363]
[1750886487873,0.2048,2438.8,2438.6,4.10070575]
[1750886488163,10.6029,2439.1,2438.8,4.1003244]
[1750886488348,1.768,2439.0,2438.8,4.1003244]
[1750886489142,1.768,2439.0,2438.7,4.30526492]
[1750886490223,1.768,2439.0,2438.8,4.10036803]
[1750886490835,1.768,2439.0,2438.7,4.30528138]
[1750886491262,1.768,2439.0,2438.7,4.30530265]
[1750886498630,1.768,2439.0,2438.7,0.2048]
[1750886498952,1.46237,2438.9,2438.5,4.30558543]
[1750886499151,0.2048,2438.9,2438.5,4.30558543]
[1750886499463,4.30505728,2438.9,2438.5,0.2048]
[1750886500463,0.2048,2438.9,2438.5,4.30565933]
[1750886500962,4.30502299,2438.9,2438.5,4.30565933]
[1750886501361,0.795,2438.7,2438.2,4.10131374]
[1750886501664,0.9998,2438.7,2438.4,4.10096425]
[1750886502358,0.89051785,2438.7,2438.4,4.10096425]
[1750886502559,0.89051785,2438.7,2438.3,4.30595593]
[1750886503534,0.89051785,2438.7,2438.4,4.1010296]
[1750886505982,0.89051785,2438.7,2438.5,4.10087119]
[1750886506683,0.89051785,2438.7,2438.4,4.10103331]
[1750886509446,0.89051785,2438.7,2438.5,4.10085714]
[1750886509648,0.89051785,2438.7,2438.6,4.10071352]
[1750886509968,2.65651785,2438.7,2438.6,4.10071352]
[1750886510904,2.65651785,2438.7,2438.5,4.10078564]
[1750886511198,2.65651785,2438.7,2438.6,4.10071352]
[1750886512982,2.65651785,2438.7,2438.5,4.10078381]
[1750886513412,2.65651785,2438.7,2438.6,4.10071352]
[1750886514109,0.7923,2438.9,2438.6,0.82016961]
[1750886514274,1.766,2438.7,2438.6,4.10062292]
[1750886514600,1.766,2438.7,2438.5,4.1007857]
[1750886515173,1.766,2438.7,2438.6,4.10071352]
[1750886516098,1.766,2438.7,2438.5,4.10079399]
[1750886516281,1.766,2438.7,2438.6,4.10071352]
[1750886517402,1.766,2438.7,2438.5,4.10083867]
[1750886517611,1.766,2438.7,2438.5,5.02216501]
[1750886519278,1.766,2438.7,2438.6,4.10071352]
[1750886519916,1.766,2438.7,2438.5,5.02213343]
[1750886520615,1.766,2438.7,2438.6,4.10071352]
[1750886521107,1.766,2438.7,2438.5,5.02212817]
[1750886521716,1.766,2438.7,2438.6,4.10071352]
[1750886522183,1.766,2438.7,2438.6,1.01343046]
[1750886522384,1.766,2438.7,2438.6,5.11414398]
[1750886523823,1.766,2438.7,2438.6,1.01343046]
[1750886525012,11.04701734,2438.9,2438.6,5.11414398]
[1750886525013,0.2048,2438.9,2438.6,5.11414398]
[1750886525218,7.8,2439.2,2439.1,4.0998729]
[1750886525433,1.766,2439.5,2439.1,1.21718729]
[1750886525636,1.766,2439.5,2439.4,4.09936869]
[1750886526609,1.766,2439.5,2439.4,4.90656869]
[1750886527828,0.8218,2439.9,2439.5,4.09905981]
[1750886528038,1.763,2439.8,2439.6,4.09900218]
[1750886528332,1.763,2439.8,2439.5,4.09912117]
[1750886528640,1.763,2439.8,2439.5,4.0991093]
[1750886529234,1.763,2439.8,2439.5,4.09909439]
[1750886529400,1.763,2439.8,2439.6,4.09891056]
[1750886529738,1.763,2439.8,2439.5,4.09912983]
[1750886529936,1.763,2439.8,2439.5,4.99969426]
[1750886530421,1.763,2439.8,2439.7,4.09886461]
[1750886530623,9.837,2440.2,2439.9,4.09842952]
[1750886530822,1.763,2440.1,2439.9,4.09842952]
[1750886534023,1.763,2440.1,2439.7,4.09871155]
[1750886534229,5.86124875,2440.1,2439.6,4.09899452]
[1750886535106,6.06604875,2440.1,2439.6,4.30379452]
[1750886535400,6.06604875,2440.1,2439.6,5.31487027]
[1750886535602,1.9678,2440.1,2439.7,4.09885617]
[1750886536842,6.06599533,2440.1,2439.6,5.3148246]
[1750886537022,1.9678,2440.1,2439.7,4.09885201]
[1750886537439,6.06599352,2440.1,2439.6,5.31481605]
[1750886537621,0.7787,2440.0,2439.4,0.8072]
[1750886537823,0.2048,2439.9,2439.5,4.09911483]
[1750886539450,0.2048,2439.9,2439.5,4.09919343]
[1750886540524,4.09907907,2439.6,2439.4,0.2048]
[1750886540728,4.09907907,2439.6,2439.1,14.30460999]
[1750886540729,0.9852,2439.6,2439.1,14.30460999]
[1750886541052,0.9852,2439.6,2439.2,5.60908678]
[1750886541351,4.09920476,2439.5,2439.1,0.2048]
[1750886541833,4.0994414,2439.4,2439.1,0.2048]
[1750886542156,4.09955922,2439.3,2438.8,4.10035638]
[1750886542337,4.30435922,2439.3,2438.9,0.2048]
[1750886542656,0.2048,2439.3,2438.9,4.30499601]
[1750886542819,0.2048,2439.3,2438.9,5.22659855]
[1750886543021,0.2048,2439.3,2438.9,5.22658104]
[1750886543216,0.2048,2439.3,2438.9,1.12640254]
[1750886543422,0.2048,2439.3,2439.0,4.10003699]
[1750886544355,0.2048,2439.3,2438.9,1.12640254]
[1750886544526,4.30443179,2439.3,2438.9,1.12640254]
[1750886544723,4.09973816,2439.2,2438.9,0.2048]
[1750886544935,0.8253,2439.3,2438.7,10.0]
[1750886545135,0.8253,2439.3,2439.0,4.100041]
[1750886545343,2.5883,2439.3,2438.9,4.30493545]
[1750886545539,2.5883,2439.3,2439.0,4.09994703]
[1750886546261,2.5883,2439.3,2439.0,4.94043528]
[1750886546862,2.5883,2439.3,2439.2,4.09970482]
[1750886547360,2.5883,2439.3,2439.1,4.09980375]
[1750886548334,2.5883,2439.3,2439.2,4.09970482]
[1750886548873,2.5883,2439.3,2439.1,4.09978078]
[1750886549242,2.5883,2439.3,2439.2,4.09970482]
[1750886549435,2.5883,2439.3,2439.1,4.09983151]
[1750886549771,2.5883,2439.3,2439.0,0.84048825]
[1750886550083,4.10023861,2438.9,2438.4,4.10097182]
[1750886550232,2.5656,2438.8,2438.7,4.10054537]
[1750886550465,1.763,2438.9,2438.7,4.10040089]
[1750886550693,1.763,2438.9,2438.6,4.1006394]
[1750886550997,1.763,2438.9,2438.5,5.12873087]
[1750886551197,1.763,2438.9,2438.7,4.10053886]
[1750886553464,1.763,2438.9,2438.5,4.30559686]
[1750886554001,1.763,2438.9,2438.6,4.10068658]
[1750886554295,0.8112,2438.8,2438.4,4.10097628]
[1750886554485,1.016,2438.8,2438.5,4.10080302]
[1750886555192,1.016,2438.8,2438.4,4.10098172]
[1750886556307,1.016,2438.8,2438.5,4.10086883]
[1750886556888,1.763,2438.7,2438.5,4.10086883]
[1750886557078,1.016,2438.8,2438.5,4.10086883]
[1750886557279,1.763,2438.7,2438.5,4.10086883]
[1750886559378,1.016,2438.8,2438.5,4.10086883]
[1750886559583,1.76,2438.7,2438.6,4.10065696]
[1750886559882,1.76,2438.7,2438.5,4.10079706]
[1750886560286,1.76,2438.7,2438.5,4.10088168]
[1750886562019,1.76,2438.7,2438.6,4.10071352]
[1750886564090,0.2048,2438.8,2438.7,4.10054537]
[1750886564301,1.9648,2438.8,2438.7,4.10054537]
[1750886565914,0.2048,2438.8,2438.7,4.10054537]
[1750886566125,1.76,2438.8,2438.7,4.10054537]
[1750886566722,1.76,2439.3,2439.2,4.09970482]
[1750886567089,1.76,2439.3,2439.0,0.8019]
[1750886567090,1.76,2439.3,2439.0,4.90191647]
[1750886567505,1.76,2439.3,2439.0,0.8019]
[1750886568520,1.76,2439.3,2438.9,4.30493676]
[1750886569421,5.85954043,2439.3,2438.9,4.30493676]
[1750886569790,1.76,2439.3,2438.9,0.2048]
[1750886569992,0.2048,2439.0,2438.7,4.10050309]
[1750886570187,0.2048,2439.0,2438.6,4.88858813]
[1750886570521,0.2048,2439.0,2438.7,5.01994138]
[1750886570911,0.2048,2439.0,2438.5,0.2048]
[1750886571224,4.30492075,2439.0,2438.6,4.10071328]
[1750886571515,4.30492075,2439.0,2438.6,4.10069507]
[1750886571715,0.2048,2439.0,2438.6,4.10069507]
[1750886571915,4.30493931,2439.0,2438.5,4.30559855]
[1750886572101,4.30493931,2439.0,2438.6,4.10071348]
[1750886572302,4.30493931,2439.0,2438.5,4.30562047]
[1750886572601,4.30493931,2439.0,2438.5,5.89827101]
[1750886573013,0.2048,2439.0,2438.6,4.10069991]
[1750886573315,4.30485912,2439.0,2438.5,5.89825997]
[1750886573691,0.2048,2439.0,2438.6,4.10070377]
[1750886573894,0.2048,2439.0,2438.5,1.79745054]
[1750886574222,4.30484305,2439.0,2438.6,4.10060225]
[1750886575117,4.30484305,2439.0,2438.5,0.2048]
[1750886575318,4.30484305,2439.0,2438.5,4.30558879]
[1750886575822,4.30488135,2439.0,2438.5,4.30559337]
[1750886576325,4.10021703,2438.9,2438.5,4.30559337]
[1750886576508,4.10021703,2438.9,2438.6,0.49752373]
[1750886577096,4.10021703,2438.9,2438.5,4.30559337]
[1750886577517,1.76,2438.8,2438.5,4.30559337]
[1750886578021,1.76,2438.8,2438.5,0.2048]
[1750886578223,5.86039957,2438.8,2438.5,0.2048]
[1750886579323,4.10055631,2438.7,2438.5,0.2048]
[1750886579704,4.10071352,2438.6,2438.2,0.7612]
[1750886580007,6.06525911,2438.8,2438.3,1.36406699]
[1750886580212,6.06525911,2438.8,2438.3,5.4652355]
[1750886580520,1.9648,2438.8,2438.4,4.1010468]
[1750886581729,1.9648,2438.8,2438.5,4.1008617]
[1750886583923,1.9648,2438.8,2438.3,1.36406699]
[1750886584109,1.9648,2438.8,2438.3,0.2048]
[1750886584313,0.7568,2438.7,2438.3,0.2048]
[1750886584510,0.7568,2438.7,2438.3,4.3059342]
[1750886584813,0.7568,2438.7,2438.3,4.10105828]
[1750886585020,0.2048,2438.6,2438.4,4.10102908]
[1750886585217,0.2048,2438.6,2438.3,4.10121325]
[1750886585733,0.2048,2438.6,2438.4,4.10104335]
[1750886586026,0.2048,2438.6,2438.4,4.10099671]
[1750886586202,1.76,2438.6,2438.4,4.10099671]
[1750886586602,1.76,2438.6,2438.3,4.94194898]
[1750886586836,1.9648,2438.6,2438.3,4.10121127]
[1750886587428,1.9648,2438.6,2438.5,4.10088168]
[1750886588527,1.76,2438.6,2438.5,4.10088168]
[1750886588932,1.76,2438.6,2438.4,4.10098643]
[1750886589142,1.76,2438.6,2438.5,4.10088168]
[1750886589635,0.2048,2438.8,2438.7,4.10054537]
[1750886589834,1.9618,2438.8,2438.6,4.10061501]
[1750886590533,1.757,2438.8,2438.7,4.10054537]
[1750886591530,1.757,2438.8,2438.5,1.04546681]
[1750886591735,0.9637,2438.7,2438.2,0.2048]
[1750886591911,0.9637,2438.7,2438.5,4.10085984]
[1750886593013,0.9637,2438.7,2438.2,5.0820586]
[1750886593330,0.9637,2438.7,2438.2,0.98072]
[1750886593505,0.9637,2438.7,2438.4,4.10098015]
[1750886593905,0.9637,2438.7,2438.3,4.10112171]
[1750886594307,0.9637,2438.7,2438.4,4.1010353]
[1750886594638,0.9637,2438.7,2438.3,4.10112213]
[1750886594808,0.9637,2438.7,2438.3,5.10207886]
[1750886595008,0.2048,2438.7,2438.5,4.10074444]
[1750886595221,0.2048,2438.7,2438.5,4.1007858]
[1750886595814,1.757,2438.8,2438.6,4.10071352]
[1750886596035,1.9618,2438.8,2438.6,4.10071352]
[1750886596647,6.06221814,2438.8,2438.4,0.2048]
[1750886596835,1.9618,2438.8,2438.4,4.30582412]
[1750886598141,6.06218813,2438.8,2438.4,4.30582412]
[1750886598542,1.9618,2438.8,2438.4,4.30582412]
[1750886599143,1.9618,2438.8,2438.5,4.10085897]
[1750886599440,1.9618,2438.8,2438.5,4.10088168]
[1750886599839,1.757,2438.8,2438.4,4.10101249]
[1750886600044,0.2048,2438.6,2438.5,4.10086035]
[1750886602362,0.2048,2438.6,2438.2,0.98072]
[1750886602562,4.10116076,2438.4,2437.9,4.92581514]
[1750886602745,4.88287095,2438.5,2438.0,4.3064822]
[1750886602947,4.88287095,2438.5,2438.0,4.1016822]
[1750886603131,0.2048,2438.3,2438.0,4.1016822]
[1750886603958,0.2048,2438.3,2437.9,4.63976782]
[1750886604171,0.2048,2438.3,2437.9,0.53788039]
[1750886604370,0.2048,2438.3,2437.8,0.2048]
[1750886604538,0.2048,2438.1,2437.9,4.10180791]
[1750886604742,0.2048,2438.1,2437.8,4.10196916]
[1750886605330,0.2048,2438.1,2437.7,4.92615388]
[1750886605563,0.2048,2438.1,2437.8,4.10203374]
[1750886606155,0.2048,2438.1,2437.7,4.92617487]
[1750886606360,0.2048,2438.1,2437.8,4.10202498]
[1750886606854,0.2048,2438.1,2437.7,6.52209706]
[1750886607660,0.7841,2437.6,2437.2,0.10246278]
[1750886607831,14.88700075,2437.3,2437.2,0.10246278]
[1750886608164,4.10306909,2437.2,2437.1,0.20483276]
[1750886608329,4.88716909,2437.2,2437.1,0.20483276]
[1750886608848,18.59299332,2437.2,2437.1,0.20483276]
[1750886609048,19.46733266,2437.2,2437.1,0.20483276]
[1750886610255,20.01733266,2437.2,2437.1,0.20483276]
[1750886611355,4.10361954,2436.9,2436.4,4.10440542]
[1750886611557,10.0,2436.7,2436.4,4.10440542]
[1750886611761,1.757,2436.6,2436.3,4.10451688]
[1750886613534,6.797,2436.6,2436.5,4.10424789]
[1750886613739,0.8017,2437.3,2436.5,4.10420524]
[1750886613933,2.5587,2437.3,2437.1,4.10313415]
[1750886614138,2.5587,2437.3,2437.1,4.10309157]
[1750886614341,1.757,2437.3,2437.1,4.10309157]
[1750886614541,1.757,2437.3,2437.2,4.10306909]
[1750886615151,6.803,2437.7,2437.5,4.10256365]
[1750886615374,1.757,2437.6,2437.5,4.10256365]
[1750886615573,1.757,2437.6,2437.4,4.10264364]
[1750886616272,1.757,2437.6,2437.3,4.10281859]
[1750886616975,1.757,2437.6,2437.4,4.10257908]
[1750886617274,1.757,2437.6,2437.3,4.10280514]
[1750886617472,1.757,2437.6,2437.2,4.10297195]
[1750886617858,4.10339481,2437.6,2436.9,0.8267]
[1750886618049,0.2048,2437.3,2437.1,4.10323745]
[1750886618446,0.2048,2437.3,2437.2,4.10306909]
[1750886619847,10.0,2437.2,2435.7,0.7931]
[1750886620050,4.10403341,2436.7,2436.0,4.30986812]
[1750886620248,0.2048,2436.5,2436.1,4.10476619]
[1750886620864,0.2048,2436.5,2436.0,0.2048]
[1750886620865,4.30907786,2436.5,2436.0,0.2048]
[1750886621082,4.10460742,2436.3,2436.0,0.2048]
[1750886621651,4.10452113,2436.4,2435.8,4.10529432]
[1750886621953,1.795,2436.5,2435.8,5.00569144]
[1750886621954,0.2048,2436.2,2435.8,5.00569144]
[1750886622154,0.2048,2436.2,2435.9,4.10522953]
[1750886623084,0.2048,2436.2,2435.8,5.00575269]
[1750886623259,0.7509,2436.3,2435.7,0.7931]
[1750886623459,0.7509,2436.3,2435.5,0.2048]
[1750886623460,0.2048,2435.9,2435.5,0.2048]
[1750886623660,4.10546657,2435.8,2435.3,4.89928263]
[1750886623871,0.2048,2435.7,2435.3,0.9979]
[1750886624078,4.31040594,2435.7,2435.3,1.49580751]
[1750886624450,0.7509,2435.7,2435.2,4.10643876]
[1750886624687,0.7509,2435.7,2435.1,4.31137716]
[1750886624688,0.2048,2435.5,2435.1,4.31137716]
[1750886625580,4.31075323,2435.5,2435.1,0.2048]
[1750886625754,5.90111461,2435.4,2435.1,0.2048]
[1750886626281,0.2048,2435.2,2435.1,4.10660753]
[1750886627191,0.2048,2435.2,2435.0,0.7931]
[1750886627556,0.2048,2435.2,2435.0,4.89987473]
[1750886627758,0.2048,2435.2,2435.0,0.7931]
[1750886627977,0.2048,2435.2,2434.9,4.10693521]
[1750886628276,0.2048,2435.2,2435.1,4.10660753]
[1750886628777,0.2048,2435.2,2435.0,4.10668953]
[1750886629459,0.2048,2435.2,2434.8,0.2182686]
[1750886629460,4.31134728,2435.2,2434.8,0.2182686]
[1750886630298,4.1068679,2435.0,2434.8,0.2182686]
[1750886630814,4.10694484,2434.9,2434.8,0.2182686]
[1750886631468,17.50558571,2434.9,2434.8,0.2182686]
[1750886632070,24.31558571,2434.9,2434.8,0.2182686]
[1750886633004,15.70958571,2434.9,2434.8,0.2182686]
[1750886633213,24.31558571,2434.9,2434.8,0.2182686]
[1750886638202,32.11558571,2434.9,2434.8,0.2182686]
[1750886639205,24.86558571,2434.9,2434.8,0.2182686]
[1750886640297,25.83824246,2434.9,2434.8,0.2182686]
[1750886640499,24.86558571,2434.9,2434.8,0.2182686]
[1750886641375,24.85958571,2434.9,2434.8,0.2182686]
[1750886641780,24.85758571,2434.9,2434.8,0.2182686]
[1750886643297,16.25958571,2434.9,2434.8,0.2182686]
[1750886643486,24.85858571,2434.9,2434.8,0.2182686]
[1750886644210,16.25958571,2434.9,2434.8,0.2182686]
[1750886644510,24.30558571,2434.9,2434.8,0.2182686]
[1750886644709,15.70958571,2434.9,2434.8,0.2182686]
[1750886644906,23.46174484,2434.9,2434.8,0.2182686]
[1750886647504,23.45774484,2434.9,2434.8,0.2182686]
[1750886649186,32.78358598,2434.9,2434.8,0.2182686]
[1750886652991,32.23358598,2434.9,2434.8,0.2182686]
[1750886653207,34.88260481,2434.9,2434.8,0.2182686]
[1750886654023,35.43260481,2434.9,2434.8,0.2182686]
[1750886654221,34.88260481,2434.9,2434.8,0.2182686]